Workbook

Sheet 封面
A8: 2022年单位预算公开表

Sheet 表一 单位收支总体情况表
D1: 预算公开01表
A2: 单位收支总体情况表
D3: 单位：万元
A4: 收 入 | C4: 支 出
A5: 项 目 | B5: 预算数 | C5: 项 目 | D5: 预算数
A6: 一、一般公共预算资金 | B6: 10,095.43 | C6: 一、一般公共服务支出
A7: 1.经费拨款(补助) | B7: 10,095.43 | C7: 二、外交支出
A8: 2.纳入预算管理的非税收入安排的资金 | C8: 三、国防支出
A9: 二、政府性基金收入 | C9: 四、公共安全支出
A10: 三、国有资本经营收入 | C10: 五、教育支出 | D10: 26,757.48
A11: 四、纳入财政专户管理的收入安排的资金 | B11: 19,420.00 | C11: 六、科学技术支出
A12: 1.教育收费收入 | B12: 19,420.00 | C12: 七、文化旅游体育与传媒支出
A13: 2.其他收入 | C13: 八、社会保障和就业支出 | D13: 1,688.11
A14: 五、未纳入财政专户管理的收入安排的资金 | C14: 九、卫生健康支出 | D14: 421.45
A15: 1.事业收入 | C15: 十、节能环保支出
A16: 2.经营收入 | C16: 十一、城乡社区支出
A17: 3.其他收入 | C17: 十二、农林水支出
C18: 十三、交通运输支出
C19: 十四、资源勘探工业信息等支出
C20: 十五、商业服务业等支出
C21: 十六、金融支出
C22: 十七、援助其他地区支出
C23: 十八、自然资源海洋气象等支出
C24: 十九、住房保障支出 | D24: 648.39
C25: 二十、粮油物资储备支出
C26: 二十一、国有资本经营预算支出
C27: 二十二、灾害防治及应急管理支出
C28: 二十三、其他支出
C29: 二十四、债务还本支出
C30: 二十五、债务付息支出
C31: 二十六、债务发行费用支出
A33: 本 年 收 入 合 计 | B33: =B6+B9+B10+B11+B14 -> 29,515.43 | C33: 本 年 支 出 合 计 | D33: =SUM(D6:D32) -> 29,515.43
A34: 六、上年结余(结转)收入 | C34: 二十九、结转下年支出
A35: 收 入 总 计 | B35: =B33+B34 -> 29,515.43 | C35: 支 出 总 计 | D35: =D33+D34 -> 29,515.43

Sheet 表二 单位收入总体情况表
O1: 预算公开02表
A2: 单位收入总体情况表
O3: 单位：万元
A4: 单位代码 | B4: 单位名称 | C4: 合计 | D4: 本年收入 | J4: 上年结转结余
D5: 小计 | E5: 一般公共预算 | F5: 政府性基金预算 | G5: 国有资本经营预算 | H5: 纳入财政专户管理的收入 | I5: 未纳入财政专户管理的收入 | J5: 小计 | K5: 一般公共预算 | L5: 政府性基金预算 | M5: 国有资本经营预算 | N5: 纳入财政专户管理的收入 | O5: 未纳入财政专户管理的收入
A6: ** | B6: ** | C6: 1 | E6: 2 | F6: 11 | G6: 12 | H6: 13 | I6: 16 | J6: 20 | K6: 21 | L6: 22 | M6: 23 | N6: 24 | O6: 25
B7: 合计 | C7: =C8 -> 29,515.43 | D7: =D8 -> 29,515.43 | E7: 10,095.43 | F7: 0.00 | G7: 0.00 | H7: 19,420.00 | I7: 0.00 | J7: 0.00 | K7: 0.00 | L7: =L8 -> 0.00 | M7: =M8 -> 0.00 | N7: =N8 -> 0.00 | O7: =O8 -> 0.00
A8: 114 | B8: 柳州市教育局 | C8: =C9 -> 29,515.43 | D8: =D9 -> 29,515.43 | E8: 10,095.43 | F8: 0.00 | G8: 0.00 | H8: 19,420.00 | I8: 0.00 | J8: 0.00 | K8: 0.00 | L8: 0.00 | M8: 0.00 | N8: 0.00 | O8: 0.00
A9: 114285 | B9: 柳州职业技术学院 | C9: =D9+J9 -> 29,515.43 | D9: =E9+F9+G9+H9+I9 -> 29,515.43 | E9: 10,095.43 | H9: 19,420.00 | J9: 0.00

Sheet 表三 单位支出总体情况表
I1: 预算公开03表
A2: 单位支出总体情况表
I3: 单位：万元
A4: 科目编码 | D4: 单位代码 | E4: 单位名称(功能分类科目名称) | F4: 总计 | G4: 基本支出 | H4: 项目支出 | I4: 结转下年支出
A5: ** | B5: ** | C5: ** | D5: ** | E5: ** | F5: 1 | G5: 2 | H5: 7 | I5: 18
E6: 合计 | F6: =F7 -> 29,515.43 | G6: =G7 -> 10,095.43 | H6: 19,420.00
D7: 114 | E7: 柳州市教育局 | F7: =F8 -> 29,515.43 | G7: =G8 -> 10,095.43 | H7: 19,420.00
D8: 114285 | E8: 柳州职业技术学院 | F8: =SUM(F9:F14) -> 29,515.43 | G8: =SUM(G9:G14) -> 10,095.43 | H8: =SUM(H9:H14) -> 19,420.00
A9: 205 | B9: 03 | C9: 05 | E9: 高等职业教育 | F9: =G9+H9 -> 26,757.48 | G9: 7,337.48 | H9: 19,420.00
A10: 208 | B10: 05 | C10: 02 | E10: 事业单位离退休 | F10: =G10+H10 -> 391.34 | G10: 391.34
A11: 208 | B11: 05 | C11: 05 | E11: 机关事业单位基本养老保险缴费支出 | F11: 864.51 | G11: 864.51
A12: 208 | B12: 05 | C12: 06 | E12: 机关事业单位职业年金缴费支出 | F12: 432.26 | G12: 432.26
A13: 210 | B13: 11 | C13: 02 | E13: 事业单位医疗 | F13: 421.45 | G13: 421.45
A14: 221 | B14: 02 | C14: 01 | E14: 住房公积金 | F14: 648.39 | G14: 648.39

Sheet 表四 财政拨款收支总体情况表
D1: 预算公开04表
A2: 财政拨款收支总体情况表
D3: 单位：万元
A4: 收 入 | C4: 支 出
A5: 项 目 | B5: 收入数 | C5: 项 目（按支出功能科目分类） | D5: 合计
A6: 一、本年收入 | B6: 10,095.43 | C6: 一、本年支出 | D6: =SUM(D7:D32) -> 10,095.43
A7: （一）一般公共预算拨款 | B7: 10,095.43 | C7: （一）、一般公共服务支出
A8: 1.经费拨款 | B8: 10,095.43 | C8: （二）、外交支出
A9: 2.纳入一般公共预算管理的非税收入 | C9: （三）、国防支出
A10: （二）政府性基金预算拨款 | C10: （四）、公共安全支出
A11: （三）国有资本预算拨款 | C11: （五）、教育支出 | D11: 7,337.48
A12: 二、上年结转结余 | B12: 0.00 | C12: （六）、科学技术支出
A13: （一）一般公共预算拨款 | B13: 0.00 | C13: （七）、文化旅游体育与传媒支出
A14: （二）政府性基金预算拨款 | C14: （八）、社会保障和就业支出 | D14: 1,688.11
A15: （三）国有资本预算拨款 | C15: （九）、卫生健康支出 | D15: 421.45
C16: （十）、节能环保支出
C17: （十一）、城乡社区支出
C18: （十二）、农林水支出
C19: （十三）、交通运输支出
C20: （十四）、资源勘探工业信息等支出
C21: （十五）、商业服务业等支出
C22: （十六）、金融支出
C23: （十七)、援助其他地区支出
C24: （十八）、自然资源海洋气象等支出
C25: （十九）、住房保障支出 | D25: 648.39
C26: （二十）、粮油物资储备支出
C27: （二十一）、国有资本经营预算支出
C28: （二十二）、灾害防治及应急管理支出
C29: （二十三）、其他支出
C30: （二十四）、债务还本支出
C31: （二十五）、债务付息支出
C32: （二十六）、债务发行费用支出
C33: 二、结转下年支出
A34: 收 入 合 计 | B34: 10,095.43 | C34: 支 出 合 计 | D34: 10,095.43

Sheet 表五 一般公共预算支出情况表
K1: 预算公开05表
A2: 一般公共预算支出情况表
K3: 单位：万元
A4: 科目编码 | D4: 单位代码 | E4: 单位名称(功能分类科目名称) | F4: 总计 | G4: 基本支出 | J4: 项目支出 | K4: 结转下年支出
A5: 类 | B5: 款 | C5: 项 | G5: 小计 | H5: 人员经费 | I5: 公共经费
A6: ** | B6: ** | C6: ** | D6: ** | E6: ** | F6: 1 | G6: 2 | H6: 3 | I6: 4 | J6: 5 | K6: 6
E7: 合计 | F7: =F8 -> 10,095.43 | G7: =G8 -> 10,095.43 | H7: 8,480.65 | I7: 1,614.78 | K7: 0.00
D8: 114 | E8: 柳州市教育局 | F8: =F9 -> 10,095.43 | G8: =G9 -> 10,095.43 | H8: 8,480.65 | I8: 1,614.78 | K8: 0.00
D9: 114285 | E9: 柳州职业技术学院 | F9: =SUM(F10:F15) -> 10,095.43 | G9: =SUM(G10:G15) -> 10,095.43 | H9: 8,480.65 | I9: 1,614.78 | K9: 0.00
A10: 205 | B10: 03 | C10: 05 | E10: 高等职业教育 | F10: =G10+J10+K10 -> 7,337.48 | G10: =H10+I10 -> 7,337.48 | H10: 5,740.90 | I10: 1,596.58
A11: 208 | B11: 05 | C11: 02 | E11: 事业单位离退休 | F11: =G11+J11+K11 -> 391.34 | G11: =H11+I11 -> 391.34 | H11: 373.14 | I11: 18.20
A12: 208 | B12: 05 | C12: 05 | E12: 机关事业单位基本养老保险缴费支出 | F12: =G12+J12+K12 -> 864.51 | G12: 864.51 | H12: 864.51
A13: 208 | B13: 05 | C13: 06 | E13: 机关事业单位职业年金缴费支出 | F13: 432.26 | G13: 432.26 | H13: 432.26
A14: 210 | B14: 11 | C14: 02 | E14: 事业单位医疗 | F14: 421.45 | G14: 421.45 | H14: 421.45
A15: 221 | B15: 02 | C15: 01 | E15: 住房公积金 | F15: 648.39 | G15: 648.39 | H15: 648.39

Sheet 表六 一般公共预算基本支出情况表
F1: 预算公开06表
A2: 一般公共预算基本支出情况表
F3: 单位：万元
A4: 部门预算支出经济分类科目 | D4: 本年一般公共预算基本支出
A5: 类 | B5: 款 | C5: 科目名称 | D5: 合计 | E5: 人员经费 | F5: 公用经费
A7: ** | C7: ** | D7: 1 | E7: 2 | F7: 3
C8: 合计 | D8: =E8+F8 -> 10,095.43 | E8: =E9+E18+E22 -> 8,480.65 | F8: =F9+F18+F22 -> 1,614.78
A9: 301 | C9: 工资福利支出 | D9: =SUM(D10:D17) -> 7,828.44 | E9: =SUM(E10:E17) -> 7,828.44 | F9: 0.00
A10: 301 | B10: 01 | C10: 基本工资 | D10: =E10+F10 -> 3,103.18 | E10: 3,103.18
A11: 301 | B11: 02 | C11: 津贴补贴 | D11: =E11+F11 -> 1.06 | E11: 1.06
A12: 301 | B12: 07 | C12: 绩效工资 | D12: 2,298.97 | E12: 2,298.97
A13: 301 | B13: 08 | C13: 机关事业单位基本养老保险缴费 | D13: 864.51 | E13: 864.51
A14: 301 | B14: 09 | C14: 职业年金缴费 | D14: 432.26 | E14: 432.26
A15: 301 | B15: 10 | C15: 职工基本医疗保险缴费 | D15: 421.45 | E15: 421.45
A16: 301 | B16: 12 | C16: 其他社会保障缴费 | D16: 58.63 | E16: 58.63
A17: 301 | B17: 13 | C17: 住房公积金 | D17: 648.39 | E17: 648.39
A18: 302 | C18: 商品和服务支出 | D18: =SUM(D19:D21) -> 1,614.78 | E18: =SUM(E19:E21) -> 0.00 | F18: 1,614.78
A19: 302 | B19: 28 | C19: 工会经费 | D19: =E19+F19 -> 108.06 | F19: 108.06
A20: 302 | B20: 29 | C20: 福利费 | D20: =E20+F20 -> 44.66 | F20: 44.66
A21: 303 | B21: 99 | C21: 其他商品和服务支出 | D21: 1,462.06 | F21: 1,462.06
A22: 303 | C22: 对个人和家庭的补助 | D22: =SUM(D23:D26) -> 652.21 | E22: =SUM(E23:E26) -> 652.21 | F22: 0.00
A23: 303 | B23: 01 | C23: 离休费 | D23: =E23+F23 -> 27.44 | E23: 27.44
A24: 303 | B24: 02 | C24: 退休费 | D24: =E24+F24 -> 256.30 | E24: 256.30
A25: 303 | B25: 07 | C25: 医疗费补助 | D25: 19.20 | E25: 19.20
A26: 303 | B26: 99 | C26: 其他对个人和家庭的补助支出 | D26: 349.26 | E26: 349.26

Sheet 表七 一般公共预算“三公”经费支出情况表
H1: 预算公开07表
A2: 一般公共预算“三公”经费支出情况表
H3: 单位：万元
A4: 单位代码 | B4: 单位名称 | C4: “三公”经费
C5: 合计 | D5: 因公出国（境）费 | E5: 公务接待费 | F5: 公务用车购置及运行维护费
F6: 小计 | G6: 公务用车运行维护费 | H6: 公务用车购置费
A7: ** | B7: ** | C7: 1 | D7: 2 | E7: 3 | F7: 4 | G7: 5 | H7: 26
B8: 合计 | C8: 0.00 | D8: 0.00 | E8: 0.00 | F8: 0.00 | G8: 0.00 | H8: 0.00
A9: 114 | B9: 柳州市教育局 | C9: 0.00 | D9: 0.00 | E9: 0.00 | F9: 0.00 | G9: 0.00 | H9: 0.00
A10: 114285 | B10: 柳州职业技术学院 | C10: 0.00 | D10: 0.00 | E10: 0.00 | F10: 0.00 | G10: 0.00 | H10: 0.00

Sheet 表八 政府性基金预算支出情况表
I1: 预算公开08表
A2: 政府性基金预算支出情况表
I3: 单位：万元
A4: 科目编码 | D4: 单位代码 | E4: 单位名称(功能分类科目名称) | F4: 合计 | G4: 基本支出 | H4: 项目支出 | I4: 结转下年支出
A5: 类 | B5: 款 | C5: 项
A6: ** | B6: ** | C6: ** | D6: ** | E6: ** | F6: 1 | G6: 2 | H6: 7 | I6: 20
E7: 合计
A12: 注：空表则本部门无政府性基金支出预算

Sheet 表九 政府采购预算表
X1: 预算公开10表
A2: 政府采购预算表
Y3: 单位：万元
A4: 单位代码 | B4: 单位名称 | C4: 政府采购资金来源 | L4: 政府采购项目类型
C5: 总计 | D5: 一般公共预算资金 | G5: 政府性基金收入 | H5: 国有资本经营收入 | I5: 纳入财政专户管理的收入安排的资金 | J5: 未纳入财政专户管理的收入安排的资金 | K5: 上年结余（结转）收入 | L5: 合计 | M5: 集中采购 | V5: 分散采购
D6: 合计 | E6: 经费补款（补助） | F6: 纳入预算管理的非税收入安排的资金 | M6: 小计 | N6: 政府集中采购（通用类） | R6: 部门集中采购（专用类）
N8: 小计 | O8: 货物类 | P8: 工程类 | Q8: 服务类 | R8: 小计 | S8: 货物类 | T8: 工程类 | U8: 服务类 | V8: 小计 | W8: 货物类 | X8: 工程类 | Y8: 服务类
A9: ** | B9: ** | C9: 1 | D9: 2 | E9: 3 | F9: 4 | G9: 5 | H9: 6 | I9: 7 | J9: 8 | K9: 9 | L9: 10 | M9: 11 | N9: 12 | O9: 13 | P9: 14 | Q9: 15 | R9: 16 | S9: 17 | T9: 18 | U9: 19 | V9: 20 | W9: 21 | X9: 22 | Y9: 23
B10: 合计 | C10: =C11 -> 4,085.00 | I10: =I11 -> 4,085.00 | L10: 4,085.00 | M10: 4,085.00 | N10: 4,085.00 | O10: 2,670.00 | Q10: 1,415.00
A11: 114 | B11: 柳州市教育局 | C11: =C12 -> 4,085.00 | I11: =I12 -> 4,085.00 | L11: 4,085.00 | M11: 4,085.00 | N11: 4,085.00 | O11: 2,670.00 | Q11: 1,415.00
A12: 114285 | B12: 柳州职业技术学院 | C12: =D12+G12+H12+I12+J12+K12 -> 4,085.00 | I12: 4,085.00 | L12: =M12+V12 -> 4,085.00 | M12: =N12+R12 -> 4,085.00 | N12: =O12+P12+Q12 -> 4,085.00 | O12: 2,670.00 | Q12: 1,415.00
A15: 注：空表则本部门无政府采购支出预算

Sheet 表十 政府购买服务预算表
J1: 预算公开11表
A2: 政府购买服务预算表
J3: 单位：万元
A4: 单位代码 | B4: 单位名称 | C4: 政府采购资金来源
C5: 总计 | D5: 一般公共预算资金 | G5: 政府性基金收入 | H5: 国有资本经营收入 | I5: 纳入财政专户管理的收入安排的资金 | J5: 未纳入财政专户管理的收入安排的资金 | K5: 上年结余（结转）收入
D6: 合计 | E6: 经费拨款(补助) | F6: 纳入预算管理的非税收入安排的资金
A7: ** | B7: ** | C7: 1 | D7: 2 | E7: 3 | F7: 4 | G7: 5 | H7: 6 | I7: 7 | J7: 8 | K7: 9
B8: 合计
A9: 114 | B9: 柳州市教育局
A10: 114285 | B10: 柳州职业技术学院
A13: 注：空表则本部门无政府购买服务支出预算

Sheet Sheet1
